[Event "ChessKid Cup Div-II 2023"]
[Site "Online"]
[Date "2023.05.23"]
[Round "2.3"]
[White "Sadhwani, Raunak"]
[Black "Alekseenko, Kirill"]
[Result "1-0"]
[ECO "C54"]
[WhiteElo "2627"]
[BlackElo "2686"]
[Annotator "TA"]
[PlyCount "93"]
[EventDate "2023.05.21"]
[EventType "k.o."]
[EventCountry "NET"]
[SourceTitle "playchess.com"]
[Source "ChessBase"]
[SourceQuality "1"]
[TimeControl "900+3"]

{[%evp 12,93,7,10,18,21,22,6,9,0,12,0,28,22,38,40,47,48,83,61,81,68,106,55,75,66,97,82,122,110,253,174,173,139,138,138,144,137,137,138,138,134,180,163,261,260,246,268,258,254,294,295,287,268,287,292,329,324,327,320,325,261,325,281,277,304,293,179,192,181,193,190,190,189,429,437,2001,1840,29984,29985,29985,29986,29986,29987]} 1. e4 {[%emt 0:00:04]} e5 {[%emt 0:00:07]} 2. Nf3 {[%emt 0:00:01]} Nc6 {[%emt 0:00:03]} 3. Bc4 {[%emt 0:00:01]} Nf6 {[%emt 0:00:01]} 4. d3 {[%emt 0:00:00]} Bc5 {[%emt 0:00:02]} 5. O-O {[%emt 0:00:01]} d6 {[%emt 0:00:05]} 6. Re1 {[%emt 0:00:00]} h6 {[%emt 0:00:16]} 7. c3 {[%emt 0:00:02]} Bb6 {[%emt 0:00:03] C54: Giuoco Piano: 4 c3 Nf6, main lines with 5 d4 and 5 d3.} 8. Nbd2 {[%emt 0:00:08]} O-O {[%emt 0:00:40]} 9. h3 {[%emt 0:00:15] 9.b4 is a critical line.} Ne7 {[%emt 0:00:04] The position is equal.} 10. d4 {[%emt 0:00:12]} Nc6 {[%emt 0:00:11][%cal Re5d4]} 11. dxe5 {[%emt 0:00:27] [#]} dxe5 $146 {[%emt 0:00:07]} ({Predecessor:} 11... Nxe5 12. Nxe5 dxe5 13. Qe2 Qe7 14. Nf3 Kh7 15. Be3 g6 16. Rad1 c6 17. a4 Nh5 {0-1 Sevian,S (2668)-Oparin,G (2604) Lindores Abbey Blitz Tal Memorial 2021 (6.11)}) 12. Bb5 {[%emt 0:00:26]} Qe7 {[%emt 0:01:13][%cal Ob6f2]} 13. a4 {[%emt 0:01:04]} Be6 {[%emt 0:04:04]} (13... Qc5 14. Qe2 $16) 14. Qe2 {[%emt 0:01:15]} Nh5 {[%emt 0:00:45]} 15. Nc4 {[%emt 0:00:09]} (15. Bxc6 {is interesting.} Nf4 16. Qf1 bxc6 17. a5) 15... Bxc4 {[%emt 0:01:37]} 16. Bxc4 {[%emt 0:00:00]} a5 {[%emt 0:00:10]} 17. Kh2 {[%emt 0:00:45]} (17. g4 $16 Nf4 18. Bxf4 exf4 19. e5) 17... Rad8 {[%emt 0:00:17]} 18. g3 {[%emt 0:00:03]} Qf6 {[%emt 0:00:24]} 19. Kg2 {[%emt 0:00:01]} Ne7 {[%emt 0:00:26]} 20. Nh2 {[%emt 0:00:10]} Ng6 {[%emt 0:00:40] This costs Black the game.} 21. Ng4 {[%emt 0:00:30]} (21. Qxh5 $2 Qxf2+ 22. Kh1 Qxe1+ $19) 21... Qc6 {[%emt 0:00:34]} 22. Bb5 {[%emt 0:00:36]} Qc5 {[%emt 0:00:04]} 23. Be3 {[%emt 0:00:10]} Qe7 {[%emt 0:00:23] [#]} 24. Nxh6+ $1 {[%emt 0:00:24][%mdl 576] Discovered Attack} gxh6 {[%emt 0:00:03]} 25. Qxh5 {[%emt 0:00:00]} Bxe3 {[%emt 0:00:02]} 26. Rxe3 {[%emt 0:00:01]} Rd2 {[%emt 0:00:01]} (26... Qg5 $16 27. Qxg5 hxg5) 27. Re2 {[%emt 0:00:37]} (27. Qxh6 $2 Qf6 28. Rf3 (28. Re2 $2 Rxe2 $19) 28... Nf4+ 29. Rxf4 Qxh6 $19) 27... Rfd8 {[%emt 0:00:43]} (27... Rd6 $142 28. Ree1 (28. Qxh6 $2 Nf4+ $19) 28... Qg5 29. Qxg5 hxg5) 28. Qxh6 $18 {[%emt 0:00:38]} R2d6 {[%emt 0:00:23][%cal Og6f4] Strongly threatening ...Nf4+!} 29. Qe3 {[%emt 0:00:53] Against Nf4+} Qe6 {[%emt 0:00:01]} 30. Rc2 {[%emt 0:00:06]} (30. Qg5 c6 $11) 30... c6 {[%emt 0:00:20]} 31. Be2 {[%emt 0:00:02]} Qb3 {[%emt 0:00:01]} 32. Qc1 {[%emt 0:00:06]} Kg7 {[%emt 0:00:03]} 33. Ra3 {[%emt 0:00:09]} Qb6 {[%emt 0:00:02] [#]} 34. b4 $1 {[%emt 0:00:39]} axb4 {[%emt 0:00:09]} 35. Rb3 {[%emt 0:00:00]} ({Don't do} 35. a5 Qc5 36. Rb3 (36. cxb4 Qxb4 37. Rc4 Qd2 $18) 36... Qxa5 37. Rxb4 b5 $18) 35... Rf6 {[%emt 0:00:24]} 36. Bh5 {[%emt 0:00:24]} (36. Rxb4 $2 {perishes.} Qxf2+ 37. Kh1 Qxg3 $19) 36... c5 {[%emt 0:00:10]} 37. Bxg6 {[%emt 0:00:06]} Rxg6 {[%emt 0:00:20]} 38. cxb4 {[%emt 0:00:13]} cxb4 {[%emt 0:00:00]} 39. Rcb2 {[%emt 0:00:08]} Rd4 {[%emt 0:00:06]} 40. Qe1 {[%emt 0:00:00][%cal Rb3b4]} Qa5 {[%emt 0:00:19]} 41. h4 {[%emt 0:00:13]} (41. Rxb4 $2 {too greedy.} Rb6 42. Qe3 Rdxb4 $19) 41... Rb6 {[%emt 0:00:42]} 42. Qe3 {[%emt 0:00:10]} Kf8 $2 {[%emt 0:00:23]} (42... Qc5 {was worth a try.} 43. Rd2 Kh7) 43. Rc2 {[%emt 0:00:41] aiming for Rc8+.} Qxa4 {[%emt 0:00:07]} (43... Rg6 $142 44. h5 Re6) 44. Rc8+ {[%emt 0:00:08]} Ke7 {[%emt 0:00:02]} 45. Qg5+ {[%emt 0:00:02] White mates.} Kd7 {[%emt 0:00:24]} 46. Qd8+ {[%emt 0:00:05]} Ke6 {[%emt 0:00:02]} 47. Qxb6+ {[%emt 0:00:00] Weighted Error Value: White=0.17 (very precise) /Black=0.44} 1-0

[Event "ChessKid Cup Div-II 2023"]
[Site "Online"]
[Date "2023.05.23"]
[Round "2.4"]
[White "Alekseenko, Kirill"]
[Black "Sadhwani, Raunak"]
[Result "0-1"]
[ECO "B13"]
[WhiteElo "2686"]
[BlackElo "2627"]
[Annotator "TA"]
[PlyCount "90"]
[EventDate "2023.05.21"]
[EventType "k.o."]
[EventCountry "NET"]
[SourceTitle "playchess.com"]
[Source "ChessBase"]
[SourceQuality "1"]
[TimeControl "900+3"]

{[%evp 9,90,4,11,0,6,-11,-11,-15,-16,-13,-14,-15,-9,-53,-25,-51,-47,-88,-79,-106,-103,-101,-40,-40,0,0,33,35,48,32,35,-147,-134,-145,-31,-45,-33,-36,-26,-73,-43,-82,-70,-84,-87,-72,-27,-27,0,0,0,0,0,-203,-168,-203,-197,-206,-197,-197,0,0,0,0,0,0,0,0,0,0,0,0,0,-359,-327,-270,-255,-29973,-29974,-29975,-29976,-29976,-29975]} 1. d4 {[%emt 0:00:09]} Nf6 {[%emt 0:00:05]} 2. Nc3 {[%emt 0:00:01]} d5 {[%emt 0:00:01]} 3. Bf4 {[%emt 0:00:01]} c5 {[%emt 0:00:01]} 4. e3 {[%emt 0:00:05]} cxd4 {[%emt 0:00:31]} 5. exd4 {[%emt 0:00:03]} Bg4 {[%emt 0:00:50]} 6. f3 {[%emt 0:00:05] B13: Caro-Kann: Exchange Variation and Panov-Botvinnik Attack.} Bd7 {[%emt 0:00:01]} 7. Bd3 {[%emt 0:01:01]} Nc6 {[%emt 0:00:54][%cal Bb8c6,Bc6b4,Bb4d3][%mdl 32]} 8. Nge2 {[%emt 0:00:03] The position is equal.} Qb6 {[%emt 0:00:02]} 9. Qd2 {[%emt 0:01:11]} Nb4 {[%emt 0:00:24]} (9... Nxd4 10. Nxd4 Qxd4 11. Nb5 Qxb2 12. O-O Bxb5 13. Rfb1 $16 (13. c3 $2 Qxd2 14. Bxb5+ Kd8 $17)) 10. O-O {[%emt 0:00:13]} e6 {[%emt 0:00:09] [#]} 11. Kh1 $146 {[%emt 0:00:10]} ({Predecessor:} 11. a4 Nxd3 12. Qxd3 Be7 13. a5 Qd8 14. a6 b6 15. Ng3 O-O 16. Kh1 Rc8 17. b3 {0-1 Correa de Almeida,C (1571)-Kolanek,S (2009) OP-2017-0-04398}) 11... Rc8 {[%emt 0:00:04]} 12. Be5 {[%emt 0:00:14]} Be7 {[%emt 0:00:41]} 13. Rae1 {[%emt 0:00:21]} O-O {[%emt 0:00:11]} 14. f4 {[%emt 0:00:11]} Nxd3 {[%emt 0:00:17]} 15. cxd3 {[%emt 0:00:31][%cal Of4f5]} Ng4 {[%emt 0:00:17]} (15... Qd8 $17) 16. f5 $1 $15 {[%emt 0:00:22][%cal Of5f6]} Bh4 {[%emt 0:00:38]} (16... exf5 17. Nxd5 Qd8 18. Nxe7+ Qxe7 19. Nc3 $11) (16... Qd8 {simplifies} 17. fxe6 fxe6 18. Bf4 b5) 17. f6 {[%emt 0:02:39]} Bxf6 {[%emt 0:07:23]} (17... Bxe1 18. Qg5 g6 19. Rxe1 $16) (17... gxf6 $5 18. Bxf6 Nxf6 $11) 18. Bxf6 {[%emt 0:02:04]} Nxf6 {[%emt 0:00:00] [#]} (18... gxf6 $2 19. h3 $18) 19. Rxf6 {[%emt 0:00:01]} gxf6 {[%emt 0:00:01]} 20. Rf1 $2 {[%emt 0:00:01]} (20. Qh6 $1 $14 {is the one way to stay ahead.} Qxb2 21. Qxf6) 20... Kh8 $1 $17 {[%emt 0:00:16]} 21. Rxf6 {[%emt 0:00:46] [#]} Rg8 {[%emt 0:00:06]} (21... Be8 $1 $17 {...Rg8 is the strong threat.} 22. Nxd5 Qd8) 22. Rxf7 $15 {[%emt 0:00:26] Qh6 would kill now.} Rg7 {[%emt 0:00:38]} 23. Rxg7 {[%emt 0:00:05]} Kxg7 {[%emt 0:00:01]} 24. h3 {[%emt 0:01:09]} (24. Qg5+ $11 {was preferrable.} Kf8 25. Qf6+ Ke8 26. Qh8+ Ke7 27. Qxh7+ (27. Qg7+ Kd6 $17) 27... Kd6 28. b3) 24... Qd8 {[%emt 0:00:44] Black is more active.} 25. Ng1 {[%emt 0:00:23]} Qf6 {[%emt 0:00:07]} 26. Nf3 {[%emt 0:00:17]} Rf8 {[%emt 0:00:00]} 27. Ne2 {[%emt 0:00:08]} Qh6 {[%emt 0:00:25] White must now prevent ...Qxd2.} (27... Be8 $5 {[%cal Re8h5]}) 28. Qb4 {[%emt 0:01:28]} Rxf3 {[%emt 0:00:06][%mdl 64] Deflection} 29. gxf3 {[%emt 0:00:00]} Qxh3+ $11 {[%emt 0:00:01][%mdl 4096] Endgame KQB-KQN} 30. Kg1 {[%emt 0:00:01] Hoping for Qe7+.} Qxf3 {[%emt 0:00:00]} 31. Nc3 {[%emt 0:00:36]} (31. Qxb7 $11 {and White is okay.} Qxe2 32. Qxd7+ Kh6 33. Qxa7) 31... Qg3+ {[%emt 0:00:22]} ({Not} 31... Qxd3 32. Qe7+ Kg6 33. Qxd7 Qxd4+ 34. Kf1 $11) 32. Kf1 {[%emt 0:00:02] Qe7+ would be deadly.} Qxd3+ {[%emt 0:00:01]} 33. Ke1 {[%emt 0:00:02]} Qe3+ {[%emt 0:00:05]} 34. Ne2 {[%emt 0:00:07]} Be8 $2 {[%emt 0:00:12]} (34... Bc6 $19 {And now ...Kg6 would win.} 35. b3 Kf7) 35. Qxb7+ {[%emt 0:00:02]} Kf6 {[%emt 0:00:35]} 36. Qxh7 {[%emt 0:00:30]} Bb5 {[%emt 0:00:02][%csl Gb5][%cal Re3e2]} 37. Qh4+ {[%emt 0:00:11]} Kf5 {[%emt 0:00:06][%csl Gb5][%cal Re3e2]} 38. Qh7+ {[%emt 0:00:05]} Kf6 {[%emt 0:00:01][%csl Gb5][%cal Re3e2]} 39. Qh4+ {[%emt 0:00:18]} Kf5 {[%emt 0:00:02][%csl Gb5][%cal Re3e2]} 40. Qh5+ {[%emt 0:00:01]} Kf6 {[%emt 0:00:00] aiming for ...Bxe2.} 41. b4 $2 {[%emt 0:00:38][%mdl 8192] [#]} (41. Qh4+ $11 {and White stays safe.} Kg6 42. Qg4+ Kf7 43. Qf4+ Qxf4 44. Nxf4) 41... Bxe2 $1 $19 {[%emt 0:00:10]} 42. Qxe2 {[%emt 0:00:01]} Qxd4 {[%emt 0:00:10]} 43. b5 $2 {[%emt 0:00:05]} (43. Qf3+ $19 Ke5 44. Qg3+ Ke4 45. Qg4+ Kd3 46. Qe2+ Kc3 47. Qxe6) 43... Qe5 {[%emt 0:00:07] Black mates.} 44. a4 {[%emt 0:00:04]} Qxe2+ {[%emt 0:00:02]} 45. Kxe2 {[%emt 0:00:01]} Ke5 {[%emt 0:00:01] Weighted Error Value: White=0.48/Black=0.18 (very precise)} 0-1

[Event "ChessKid Cup Div-II 2023"]
[Site "Online"]
[Date "2023.05.23"]
[Round "2.4"]
[White "Fedoseev, Vladimir"]
[Black "Anton Guijarro, David"]
[Result "1-0"]
[ECO "E51"]
[WhiteElo "2680"]
[BlackElo "2690"]
[Annotator "TA"]
[PlyCount "55"]
[EventDate "2023.05.21"]
[EventType "k.o."]
[EventCountry "NET"]
[SourceTitle "playchess.com"]
[Source "ChessBase"]
[SourceQuality "1"]
[TimeControl "900+3"]

{[%evp 16,55,13,15,31,15,27,9,33,25,31,28,45,27,35,33,103,116,112,100,233,209,244,225,272,186,206,163,345,340,331,278,231,229,1221,1177,1190,1138,5900,553,29995,29996]} 1. d4 {[%emt 0:00:06]} Nf6 {[%emt 0:00:12]} 2. c4 {[%emt 0:00:04]} e6 {[%emt 0:00:02]} 3. Nf3 {[%emt 0:00:13]} d5 {[%emt 0:00:02]} 4. e3 {[%emt 0:00:21]} Be7 {[%emt 0:00:11]} 5. Nc3 {[%emt 0:00:04]} O-O {[%emt 0:00:04]} 6. a3 {[%emt 0:00:01]} c6 {[%emt 0:01:09]} 7. Bd3 {[%emt 0:00:40]} dxc4 {[%emt 0:01:05]} 8. Bxc4 {[%emt 0:00:03]} c5 {[%emt 0:00:01]} 9. O-O {[%emt 0:00:24]} a6 {[%emt 0:00:21] E51: Nimzo-Indian: Rubinstein: 4...0-0 5 Nf3 d5.} 10. dxc5 {[%emt 0:01:03]} Bxc5 {[%emt 0:00:05]} 11. b4 {[%emt 0:00:51] 11.Qe2 gains popularity.} Bd6 {[%emt 0:01:08] [#] The position is equal.} 12. Bd3 $146 {[%emt 0:00:18]} ({Predecessor:} 12. Bb2 Qc7 13. Bb3 b5 14. Rc1 Qb6 15. Qd4 Qxd4 16. Nxd4 Bb7 17. Rfd1 Rd8 18. Ndxb5 axb5 19. Nxb5 {1-0 Staak,R (2126)-Bernhard,R (1728) Hamburg-ch MA 2018 (1)}) 12... Qe7 {[%emt 0:00:39]} 13. Bb2 {[%emt 0:00:10]} Rd8 {[%emt 0:00:09]} 14. Qc2 {[%emt 0:00:13]} Nbd7 {[%emt 0:00:20]} 15. Rfd1 {[%emt 0:00:26]} a5 {[%emt 0:01:01] [#]} (15... h6 $14) 16. Nb5 $1 $16 {[%emt 0:00:22]} Bb8 {[%emt 0:00:27]} 17. bxa5 {[%emt 0:01:10] White is much more active.} e5 {[%emt 0:01:08] Black cannot hold the game after this.} (17... Nf8 $16 {is a better defense.}) 18. Bc4 $18 {[%emt 0:00:03]} e4 {[%emt 0:00:52]} 19. Ng5 {[%emt 0:00:23]} Rf8 {[%emt 0:00:17][%cal Ob8h2]} 20. Bxf7+ {[%emt 0:00:25]} Kh8 {[%emt 0:00:31]} 21. Be6 {[%emt 0:01:25][%cal Og5f7] Nf7+! would be deadly.} Ra6 $2 {[%emt 0:01:07]} (21... h6) 22. Nd4 {[%emt 0:00:59][%cal Bb5d4,Bd4f5,Bf5e7][%mdl 32]} Nc5 {[%emt 0:02:29][%cal Rc5e6]} 23. Bxc8 {[%emt 0:00:26]} ({Weaker is} 23. Nf7+ Kg8 24. Nh6+ Kh8 25. Bxc8 (25. Nf7+ Kg8 $16) 25... Rxc8 $16) 23... Rxc8 {[%emt 0:00:03]} 24. Nf5 {[%emt 0:00:25]} Qc7 {[%emt 0:00:09] [#]} (24... Qf8 25. Rac1 Rac6) 25. Be5 $1 {[%emt 0:00:52][%mdl 576] Decoy} Qxa5 {[%emt 0:00:09]} 26. Ne7 {[%emt 0:00:46][%cal Rg5f7]} Rf8 {[%emt 0:00:07] Against Nf7+} 27. Bxb8 {[%emt 0:00:03]} (27. Qxc5 $142 {[%cal Oe7g6] White threatens Ng6+! and mate.} g6 28. Nxg6+ {[%mdl 64] Discovered Attack, Double Attack} Kg7 29. Qxf8+ Kxg6 30. Bxf6 Bxh2+ 31. Kh1 Rxf6 32. Qg8+ Kh5 33. g4+ {[%mdl 64] Decoy} Kxg4 34. Nxh7+ Kh4 35. Nxf6) 27... Nd3 {[%emt 0:00:22] [#]} 28. Nf7+ $1 {[%emt 0:00:14] An entertaining game by Fedoseev.   Weighted Error Value: White=0.38/Black=0.74} 1-0

[Event "ChessKid Cup Div-II 2023"]
[Site "Online"]
[Date "2023.05.24"]
[Round "3.1"]
[White "Nguyen, Ngoc Truong Son"]
[Black "Oparin, Grigoriy"]
[Result "1-0"]
[ECO "E05"]
[WhiteElo "2645"]
[BlackElo "2667"]
[Annotator "TA"]
[PlyCount "60"]
[EventDate "2023.05.21"]
[EventType "k.o."]
[EventCountry "NET"]
[SourceTitle "playchess.com"]
[Source "ChessBase"]
[SourceQuality "1"]
[TimeControl "900+3"]

{[%evp 18,60,18,10,15,1,8,7,10,0,14,9,21,21,18,22,9,6,76,72,63,77,78,75,70,63,107,91,86,82,81,83,78,84,151,147,155,157,148,137,150,152,247,166,237]} 1. d4 {[%emt 0:00:10]} Nf6 {[%emt 0:00:10]} 2. Nf3 {[%emt 0:00:05]} d5 {[%emt 0:00:02]} 3. c4 {[%emt 0:00:15]} e6 {[%emt 0:00:01]} 4. g3 {[%emt 0:00:01]} Be7 {[%emt 0:00:01]} 5. Bg2 {[%emt 0:00:02]} O-O {[%emt 0:00:01]} 6. O-O {[%emt 0:00:04]} dxc4 {[%emt 0:00:01]} 7. Qc2 {[%emt 0:00:09]} a6 {[%emt 0:00:01]} 8. a4 {[%emt 0:00:11]} Bd7 {[%emt 0:00:01]} 9. Qxc4 {[%emt 0:00:10]} Bc6 {[%emt 0:00:01]} 10. Bg5 {[%emt 0:00:04]} Nbd7 {[%emt 0:00:01] E05: Open Catalan: 5 Nf3 Be7.} 11. e3 $5 {[%emt 0:00:05][%mdl 4] An interesting side line.} h6 {[%emt 0:00:03]} 12. Bxf6 {[%emt 0:00:03]} Nxf6 {[%emt 0:00:00] The position is equal.} 13. Nbd2 {[%emt 0:00:23]} Rc8 {[%emt 0:00:18]} 14. Rfc1 {[%emt 0:01:00] [#]} Qe8 $146 {[%emt 0:00:04]} ({Predecessor:} 14... Ne4 15. Nxe4 Bxe4 16. b4 Qd5 17. Qxd5 exd5 18. b5 axb5 19. axb5 Ra8 20. Ne5 Bxg2 21. Kxg2 {1-0 Garriga Cazorla,P (2478)-Farran Martos,F (2424) Catalunya-ch 2021 (8)}) 15. Qb3 {[%emt 0:00:44]} Bd5 {[%emt 0:00:47] A strong pair of Bishops.} 16. Qd3 {[%emt 0:00:19]} Bc6 {[%emt 0:00:01]} 17. b3 {[%emt 0:00:12]} b5 {[%emt 0:00:45]} (17... Nd5 $11) 18. Ne5 $16 {[%emt 0:01:03]} Bxg2 {[%emt 0:00:03]} 19. Kxg2 {[%emt 0:00:00]} c5 {[%emt 0:00:01]} 20. axb5 {[%emt 0:01:06]} axb5 {[%emt 0:00:02]} 21. Ndf3 {[%emt 0:00:55]} Rc7 {[%emt 0:01:10] Wards off Ra7} 22. dxc5 {[%emt 0:00:25]} Bxc5 {[%emt 0:00:25]} 23. Ra5 {[%emt 0:01:25][%cal Ba1a5,Ba5b5,Bb5b7][%mdl 32] Against b4. White has more active pieces.} Bb6 {[%emt 0:00:01][%csl LRa5,LRc1]} 24. Rxc7 {[%emt 0:00:02]} ({Worse is} 24. Rxb5 Rxc1 25. Rxb6 Qa8 $17) 24... Bxc7 {[%emt 0:00:00]} 25. Rxb5 {[%emt 0:00:02]} Qa8 {[%emt 0:00:01] [#]} (25... Bxe5 $142 26. Rxe5 (26. Nxe5 Qa8+ 27. Nf3 Rd8 $16) 26... Qa8) 26. Nd7 $1 {[%emt 0:00:27] White is clearly better.} Nxd7 {[%emt 0:01:02]} 27. Qxd7 {[%emt 0:00:00]} Bd8 {[%emt 0:00:02]} 28. Rb7 {[%emt 0:00:24] b4 is the strong threat.} Bf6 {[%emt 0:00:03]} 29. b4 {[%emt 0:00:09] Hoping for b5.} g5 {[%emt 0:00:10]} (29... Qc8 $16) 30. h3 {[%emt 0:00:18] Strongly threatening b5.} h5 {[%emt 0:00:05] Weighted Error Value: White=0.07 (flawless) /Black=0.19 (very precise)} (30... Qc8 $142) 1-0